fUST/lending_fUST_20250417
["ID","MTS","AMOUNT","RATE_DAILY","PERIOD"]
[358195067,1744827629177,-257.03545622,0.0001947,2]
[358195068,1744827632879,-37.89378829,0.0001947,2]
[358195069,1744827632908,-215.33149915,0.0001947,2]
[358195070,1744827645601,-211.79431192,0.00018473,2]
[358195071,1744827664539,-45.97824028,0.00018473,2]
[358195072,1744827664562,-105.95945462,0.00019469,2]
[358195073,1744827700745,-151.93211577,0.00019469,2]
[358195074,1744827722091,-238.06788423,0.00019469,2]
[358195075,1744827740238,-234.15551216,0.00018473,2]
[358195076,1744827747549,-169.60459693,0.00018473,2]
[358195077,1744827786339,-151.51905394,0.00018472,2]
[358195078,1744827789563,-148.48094606,0.00018472,2]
[358195079,1744827789587,-2.51905394,0.00018473,2]
[358195080,1744827811781,-157.0039481,0.00018473,2]
[358195081,1744827846092,-192.12489865,0.00018472,2]
[358195082,1744827874243,-107.87510135,0.00018472,2]
[358195083,1744827874276,-219.09693735,0.00018472,2]
[358195084,1744827899818,-189.154437,0.00018373,2]
[358195085,1744827905717,-64.9130068,0.00018373,2]
[358195086,1744827905747,-173.0821287,0.00018472,2]
[358195097,1744827914150,-126.9178713,0.00018472,2]
[358195098,1744827914177,-18200.92788167,0.00018473,2]
[358195099,1744827914205,-172.67699758,0.00019274,2]
[358195100,1744827914230,-1499.47724945,0.00019329,2]
[358195101,1744827915113,-210.20099996,0.00019329,2]
[358195106,1744827931258,-180.4983712,0.00019329,2]
[358195108,1744827993606,-188.62583769,0.00019329,2]
[358195109,1744827995132,-157.31197415,0.00019329,2]
[358195110,1744828013573,-255.04334378,0.00019136,2]
[358195111,1744828016185,-637.09917045,0.00019329,2]
[358195112,1744828024359,-164.62627224,0.00019329,2]
[358195113,1744828030151,-164.62627224,0.00019136,2]
[358195114,1744828050835,-158.683,0.00019136,2]
[358195115,1744828059272,-284.98203637,0.000189,2]
[358195116,1744828082035,-232.34335057,0.000189,2]
[358195117,1744828082059,-23.65030415,0.00019136,2]
[358195118,1744828098264,1487.655,0.000125,2]
[358195119,1744828098292,6646.29733758,0.000125,2]
[358195124,1744828112725,-175.43706077,0.00019136,2]
[358195125,1744828118474,3549.35883386,9e-05,2]
[358195126,1744828119706,-289.79484792,0.00019136,2]
[358195137,1744828219440,-188.84397746,0.00018945,2]
[358195157,1744828232111,-339.3983603,0.00018945,2]
[358195158,1744828232122,-1040.70643109,0.00019329,2]
[358195159,1744828232167,-407.96641018,0.00019329,2]
[358195160,1744828232179,-921.51350808,0.00019329,2]
[358195161,1744828232222,-619.9478311,0.00019329,2]
[358195162,1744828232232,-300.0,0.00019463,2]
[358195163,1744828232242,-300.0,0.00019463,2]
[358195164,1744828232252,-151.0,0.00019464,2]
[358195165,1744828232261,-5942.10077659,0.00019464,2]
[358195166,1744828232273,-1106.49298168,0.00019464,2]
[358195202,1744828238193,-200.51462857,0.00019463,2]
[358195204,1744828238204,-208.00560528,0.00019463,2]
[358195206,1744828238214,-3352.10583994,0.00019463,2]
[358195208,1744828238224,-1023.91511065,0.00019463,2]
[358195212,1744828238254,-2328.19072929,0.00019463,2]
[358195215,1744828238264,-500.0,0.00019463,2]
[358195217,1744828238274,-3352.10583994,0.00019463,2]
[358195219,1744828238284,-3352.10583994,0.00019463,2]
[358195221,1744828238294,-2377.49122717,0.00019463,2]
[358195223,1744828238305,-974.61461277,0.00019463,2]
[358195225,1744828238315,-3352.10583994,0.00019463,2]
[358195227,1744828238324,-597.41954724,0.00019463,2]
[358195233,1744828238370,-841.62,0.00019463,2]
[358195235,1744828238382,-500.0,0.00019463,2]
[358195459,1744828240517,-1413.0662927,0.00019463,2]
[358195460,1744828240526,-3352.10583994,0.00019463,2]
[358195461,1744828240536,-3352.10583994,0.00019463,2]
[358195462,1744828240545,-3352.10583994,0.00019463,2]
[358195463,1744828240555,-3352.10583994,0.00019463,2]
[358195464,1744828240565,-3352.10583994,0.00019463,2]
[358195465,1744828240574,-3352.10583994,0.00019463,2]
[358195467,1744828240584,-3352.10583994,0.00019463,2]
[358195469,1744828240593,-3352.10583994,0.00019463,2]
[358195471,1744828240604,-3352.10583994,0.00019463,2]
[358195473,1744828240615,-3352.10583994,0.00019463,2]
[358195475,1744828240625,-3352.10583994,0.00019463,2]
[358195477,1744828240636,-3352.10583994,0.00019463,2]
[358195479,1744828240646,-3352.10583994,0.00019463,2]
[358195481,1744828240656,-3352.10583994,0.00019463,2]
[358195483,1744828240666,-3352.10583994,0.00019463,2]
[358195485,1744828240675,-3352.10583994,0.00019463,2]
[358195487,1744828240684,-3352.10583994,0.00019463,2]
[358195489,1744828240693,-3352.10583994,0.00019463,2]
[358195491,1744828240703,-3352.10583994,0.00019463,2]
[358195493,1744828240712,-3352.10583994,0.00019463,2]
[358195496,1744828240722,-3352.10583994,0.00019463,2]
[358195498,1744828240731,-3352.10583994,0.00019463,2]
[358195500,1744828240741,-3352.10583994,0.00019463,2]
[358195502,1744828240750,-3352.10583994,0.00019463,2]
[358195504,1744828240759,-3352.10583994,0.00019463,2]
[358195505,1744828240769,-3352.10583994,0.00019463,2]
[358195508,1744828240778,-3352.10583994,0.00019463,2]
[358195509,1744828240788,-3352.10583994,0.00019463,2]
[358195511,1744828240797,-3352.10583994,0.00019463,2]
[358195513,1744828240806,-64.11639653,0.00019463,2]
[358195516,1744828240818,-341.973,0.00019463,2]
[358195518,1744828240830,-700.0,0.00019463,2]
[358195766,1744828243492,-2246.01644341,0.00019463,2]
[358195768,1744828243502,-3352.10583994,0.00019463,2]
[358195770,1744828243512,-2805.14294353,0.00019463,2]
[358195772,1744828243524,-546.96289641,0.00019463,2]
[358195774,1744828243534,-3352.10583994,0.00019463,2]
[358195776,1744828243543,-3352.10583994,0.00019463,2]
[358195778,1744828243553,-3352.10583994,0.00019463,2]
[358195780,1744828243562,-3352.10583994,0.00019463,2]
[358195782,1744828243572,-3352.10583994,0.00019463,2]
[358195784,1744828243581,-3352.10583994,0.00019463,2]
[358195786,1744828243592,-3352.10583994,0.00019463,2]
[358195789,1744828243601,-3352.10583994,0.00019463,2]
[358195791,1744828243611,-3352.10583994,0.00019463,2]
[358195793,1744828243622,-3352.10583994,0.00019463,2]
[358195795,1744828243631,-3352.10583994,0.00019463,2]
[358195797,1744828243640,-3352.10583994,0.00019463,2]
[358195799,1744828243650,-3352.10583994,0.00019463,2]
[358195801,1744828243660,-3352.10583994,0.00019463,2]
[358195803,1744828243669,-3352.10583994,0.00019463,2]
[358195805,1744828243681,-3352.10583994,0.00019463,2]
[358195807,1744828243691,-3352.10583994,0.00019463,2]
[358195809,1744828243701,-3352.10583994,0.00019463,2]
[358195811,1744828243710,-3352.10583994,0.00019463,2]
[358195813,1744828243720,-3352.10583994,0.00019463,2]
[358195815,1744828243731,-3352.10583994,0.00019463,2]
[358195817,1744828243741,-3352.10583994,0.00019463,2]
[358195819,1744828243751,-3352.10583994,0.00019463,2]
[358195821,1744828243760,-188.62583769,0.00019463,2]
[358195823,1744828243770,-17108.36875998,0.00019464,2]
[358196062,1744828246338,-4768.16980072,0.00019464,2]
[358196103,1744828360640,-225.03548007,0.000189,2]
[358196104,1744828371086,-225.03548007,0.00018711,2]
[358196105,1744828663030,-327.6323572,0.000189,2]
[358196106,1744828791557,-217.69545765,0.0001847,2]
[358196107,1744828841499,-268.99263177,0.00018459,2]
[358196108,1744828955222,-168.60478842,0.00018294,2]
[358196109,1744828956618,-81.39521158,0.00018294,2]
[358196110,1744828956642,-69.97081574,0.00018458,2]
[358196111,1744828980536,-270.95635734,0.00018358,2]
[358196112,1744829042370,-166.7946333,0.00018358,2]
[358196113,1744829073845,-158.57635648,0.00018358,2]
[358196114,1744829102748,-152.18463873,0.00018358,2]
[358196115,1744829117933,-152.18463873,0.00018456,2]
[358196116,1744829126768,-147.81536127,0.00018456,2]
[358196117,1744829126792,-3.18463873,0.00018456,2]
[358196118,1744829163746,-245.93256,0.00018456,2]
[358196119,1744829293776,-237.24867383,0.00018357,2]
[358196124,1744829395194,166.4509017,0.00017467,2]
[358196141,1744829432625,-914.10256302,0.00018355,2]
[358196142,1744829432635,-300.0,0.00018454,2]
[358196143,1744829432644,-601.53131083,0.00018454,2]
[358196144,1744829432654,-300.0,0.00018455,2]
[358196145,1744829432663,-151.0,0.00018455,2]
[358196146,1744829432673,-151.0,0.00018455,2]
[358196147,1744829432682,-3025.21724968,0.00018455,2]
[358196148,1744829432691,-3025.21724968,0.00018455,2]
[358196149,1744829432700,-3025.21724968,0.00018455,2]
[358196150,1744829432710,-3025.21724968,0.00018455,2]
[358196151,1744829432719,-3025.21724968,0.00018455,2]
[358196152,1744829432729,-3025.21724968,0.00018455,2]
[358196153,1744829432739,-3025.21724968,0.00018455,2]
[358196154,1744829432749,-2973.78415349,0.00018455,2]
[358196176,1744829438618,-151.0,0.00018456,2]
[358196177,1744829438628,-151.0,0.00018456,2]
[358196178,1744829438638,-151.0,0.00018456,2]
[358196179,1744829438648,-151.0,0.00018456,2]
[358196180,1744829438657,-153.27698,0.00018457,2]
[358196181,1744829438667,-153.27698,0.00018457,2]
[358196182,1744829438677,-153.27698,0.00018457,2]
[358196183,1744829438686,-153.27698,0.00018457,2]
[358196184,1744829438696,-153.27698,0.00018457,2]
[358196185,1744829438705,-153.27698,0.00018457,2]
[358196186,1744829438715,-224.751632,0.00018457,2]
[358196187,1744829438725,-151.0,0.00018459,2]
[358196188,1744829438734,-19532.20625316,0.00018459,2]
[358196189,1744829438746,-1197.89573403,0.00018459,2]
[358196190,1744829438767,-3900.90538104,0.00018459,2]
[358196191,1744829438778,-263.16197735,0.0001847,2]
[358196192,1744829438788,-500.0,0.000185,2]
[358196193,1744829438798,-500.0,0.000185,2]
[358196194,1744829438809,-617.48856023,0.000185,2]
[358196195,1744829438818,-500.0,0.000185,2]
[358196196,1744829438827,-500.0,0.000185,2]
[358196197,1744829438837,-500.0,0.000185,2]
[358196198,1744829438846,-153.27698,0.000185,2]
[358196199,1744829438855,-153.27698,0.000185,2]
[358196200,1744829438865,-152.0,0.00018772,2]
[358196201,1744829438875,-757.56230093,0.000189,2]
[358196202,1744829438885,-175.4275601,0.00018904,2]
[358196203,1744829438894,-151.0,0.00019447,2]
[358196204,1744829438903,-151.0,0.00019447,2]
[358196205,1744829438912,-151.0,0.00019447,2]
[358196206,1744829438922,-294.0,0.00019447,2]
[358196207,1744829438931,-300.0,0.00019458,2]
[358196208,1744829438941,-500.0,0.00019458,2]
[358196209,1744829438950,-151.0,0.00019458,2]
[358196210,1744829438959,-300.73019277,0.00019458,2]
[358196211,1744829438968,-500.0,0.00019458,2]
[358196212,1744829438978,-151.0,0.00019458,2]
[358196213,1744829438987,-219.00602481,0.00019458,2]
[358196214,1744829438997,-416.0,0.00019458,2]
[358196215,1744829439006,-151.0,0.00019458,2]
[358196216,1744829439015,-151.0,0.00019458,2]
[358196217,1744829439025,-500.0,0.00019458,2]
[358196218,1744829439034,-151.0,0.00019458,2]
[358196219,1744829439044,-151.0,0.00019458,2]
[358196220,1744829439055,-151.0,0.00019458,2]
[358196221,1744829439064,-151.0,0.00019458,2]
[358196222,1744829439073,-151.0,0.00019458,2]
[358196223,1744829439083,-504.83553748,0.000195,2]
[358196224,1744829439092,-500.0,0.000195,2]
[358196225,1744829439102,-500.0,0.00019595,2]
[358196226,1744829439111,-151.0,0.00019595,2]
[358196227,1744829439121,-500.0,0.00019595,2]
[358196228,1744829439130,-151.0,0.00019595,2]
[358196229,1744829439139,-416.0,0.00019595,2]
[358196230,1744829439149,-151.0,0.00019595,2]
[358196231,1744829439158,-340.93764832,0.00019595,2]
[358196232,1744829439171,-159.06235168,0.00019595,2]
[358196233,1744829439416,-151.0,0.00019595,2]
[358196234,1744829439426,-151.0,0.00019595,2]
[358196235,1744829439435,-151.0,0.00019595,2]
[358196236,1744829439445,-250.0,0.000196,2]
[358196237,1744829439454,-250.0,0.000196,2]
[358196238,1744829439463,-500.0,0.00019732,2]
[358196239,1744829439472,-210.8693977,0.00019732,2]
[358196240,1744829439482,-500.0,0.00019732,2]
[358196241,1744829439491,-198.0,0.00019732,2]
[358196242,1744829439501,-416.0,0.00019732,2]
[358196243,1744829439510,-151.0,0.00019732,2]
[358196244,1744829439520,-502.06000716,0.00019732,2]
[358196245,1744829439530,-198.0,0.00019732,2]
[358196246,1744829439540,-151.0,0.00019732,2]
[358196247,1744829439549,-271.29749725,0.00019732,2]
[358196248,1744829439559,-914.10256298,0.00019867,2]
[358196249,1744829439568,-264.4508064,0.00019869,2]
[358196250,1744829439578,-500.0,0.00019869,2]
[358196251,1744829439587,-416.0,0.00019869,2]
[358196252,1744829439597,-244.84784287,0.00019869,2]
[358196253,1744829439606,-151.0,0.00019869,2]
[358196254,1744829439615,-11887.23882037,0.00019977,2]
[358196255,1744829439625,-153.27698,0.00019977,2]
[358196256,1744829439635,-153.27698,0.00019977,2]
[358196257,1744829439644,-357.58840535,0.0002,2]
[358196258,1744829439654,-672.58429472,0.0002,3]
[358196259,1744829439663,-23209.5993592,0.0002,2]
[358196260,1744829439673,-1152.82363277,0.0002,2]
[358196261,1744829439683,-153.27698,0.0002,2]
[358196262,1744829439692,-153.27698,0.0002,2]
[358196263,1744829439702,-453.81219272,0.00020006,2]
[358196264,1744829439711,-416.0,0.00020006,2]
[358196265,1744829439720,-196.0,0.00020006,2]
[358196266,1744829439730,-420.0,0.00020126,2]
[358196267,1744829439739,-416.0,0.00020143,2]
[358196268,1744829439749,-420.0,0.00020226,2]
[358196269,1744829439758,-22672.4604678,0.00020229,2]
[358196270,1744829439768,-322.63406529,0.00020229,3]
[358196271,1744829439777,-3141.7,0.00020229,2]
[358196272,1744829439787,-2165.86948738,0.0002026,2]
[358196273,1744829439796,-416.0,0.0002028,2]
[358196274,1744829439807,-416.0,0.00020417,2]
[358196275,1744829439817,-416.0,0.00020554,2]
[358196276,1744829439827,-416.0,0.00020691,2]
[358196277,1744829439837,-156.9423473,0.00020822,2]
[358196278,1744829439847,-306.0,0.00020822,2]
[358196279,1744829439856,-156.9423473,0.00020822,2]
[358196280,1744829439866,-306.0,0.00020822,2]
[358196282,1744829439875,-156.9423473,0.00020822,2]
[358196283,1744829439885,-156.9423473,0.00020822,2]
[358196284,1744829439895,-416.0,0.00020828,2]
[358196285,1744829439904,-416.0,0.00020965,2]
[358196286,1744829439914,-880.0,0.00021,2]
[358196287,1744829439924,-440.0,0.00021006,2]
[358196288,1744829439934,-250.0,0.000211,2]
[358196289,1744829439944,-404.4,0.000211,2]
[358196290,1744829439954,-416.0,0.00021102,2]
[358196291,1744829439965,-183.66314054,0.00021104,2]
[358196292,1744829439975,-416.0,0.00021239,2]
[358196293,1744829439985,-416.0,0.00021376,2]
[358196294,1744829439995,-914.10256298,0.0002138,2]
[358196295,1744829440006,-416.0,0.00021513,2]
[358196296,1744829440015,-156.5594683,0.00021644,2]
[358196297,1744829440025,-416.0,0.0002165,2]
[358196298,1744829440034,-416.0,0.00021787,2]
[358196299,1744829440044,-416.0,0.00021924,2]
[358196300,1744829440054,-587.0,0.0002195,2]
[358196301,1744829440064,-416.0,0.00022061,2]
[358196302,1744829440075,-587.0,0.00022166,2]
[358196303,1744829440084,-416.0,0.00022198,2]
[358196304,1744829440094,-416.0,0.00022335,2]
[358196305,1744829440103,-416.0,0.00022472,2]
[358196306,1744829440113,-151.0,0.000226,6]
[358196307,1744829440123,-434.36178073,0.00022609,2]
[358196308,1744829440132,-151.0,0.000231,5]
[358196309,1744829440142,-151.0,0.000236,6]
[358196310,1744829440151,-757.56230093,0.000239,2]
[358196311,1744829440161,-823.0,0.00023938,2]
[358196312,1744829440171,-1000.0,0.00023979,2]
[358196313,1744829440180,-1000.0,0.00023979,2]
[358196314,1744829440190,-500.0,0.00023979,2]
[358196315,1744829440199,-1000.0,0.00023979,2]
[358196316,1744829440212,-151.0,0.000241,7]
[358196317,1744829440222,-151.0,0.000241,6]
[358196318,1744829440232,-268.1504202,0.00024163,2]
[358196319,1744829440241,-823.0,0.00024292,2]
[358196320,1744829440252,-76363.70368569,0.000243,2]
[358196354,1744829440830,-914.10256298,0.00022892,2]
[358196356,1744829440840,-37164.02327409,0.000243,2]
[358196371,1744829440998,-7767.37130658,0.000243,2]
[358196611,1744829443511,-1196.4289643,0.000243,2]
[358196614,1744829443524,-1095.46,0.000243,2]
[358196812,1744829446632,-135409.55500081,0.000243,2]
[358197125,1744829740039,217.6954577,0.00017456,2]
[358197126,1744829975606,835.0,0.00018,2]
[358197127,1744829999582,6184.0,0.00018,2]
[358197130,1744830255077,164.369302,0.00017412,2]
[358197131,1744830255686,164.369302,0.00017441,2]
[358197132,1744830255738,164.369302,0.0001747,2]
[358197133,1744830263898,164.369302,0.00017499,2]
[358197243,1744830423218,20244.1221736,0.00017336,2]
[358197415,1744830632475,-244.95007256,0.00018144,2]
[358197417,1744830632485,-1158.14005733,0.00018148,2]
[358197419,1744830632494,-300.0,0.00018244,2]
[358197421,1744830632504,-300.0,0.00018244,2]
[358197423,1744830632514,-500.0,0.00018244,2]
[358197425,1744830632523,-249.71717469,0.00018244,2]
[358197427,1744830632533,-809.82226654,0.00018245,2]
[358197428,1744830632543,-809.82226654,0.00018245,2]
[358197429,1744830632552,-809.82226654,0.00018245,2]
[358197430,1744830632562,-809.82226654,0.00018245,2]
[358197432,1744830632571,-809.82226654,0.00018245,2]
[358197433,1744830632581,-809.82226654,0.00018245,2]
[358197434,1744830632591,-809.82226654,0.00018245,2]
[358197435,1744830632602,-809.82226654,0.00018245,2]
[358197436,1744830632614,-3922.97578866,0.00018245,2]
[358197437,1744830632623,-3922.97578866,0.00018245,2]
[358197439,1744830632633,-3922.97578866,0.00018245,2]
[358197441,1744830632642,-3922.97578866,0.00018245,2]
[358197443,1744830632654,-3922.97578866,0.00018245,2]
[358197445,1744830632663,-3922.97578866,0.00018245,2]
[358197447,1744830632672,-3922.97578866,0.00018245,2]
[358197449,1744830632682,-3922.97578866,0.00018245,2]
[358197452,1744830632693,-3922.97578866,0.00018245,2]
[358197455,1744830632703,-2152.05502822,0.00018245,2]
[358197465,1744830632758,-1237.49999775,0.00018245,2]
[358197478,1744830632871,-3922.97578866,0.00018245,2]
[358197480,1744830632881,-1119.96008466,0.00018245,2]
[358197773,1744830638638,-23827.107206,0.00018246,2]
[358197781,1744830638764,-8793.75036284,0.00018246,2]
[358197783,1744830638774,-1000.0,0.00018248,2]
[358197785,1744830638783,-3491.09000001,0.00018249,2]
[358197787,1744830638793,-152.0,0.00018272,2]
[358197789,1744830638802,-500.0,0.000183,2]
[358197791,1744830638812,-160.21889235,0.000183,2]
[358197793,1744830638823,-500.0,0.000183,2]
[358197795,1744830638835,-204.20336936,0.000183,2]
[358197797,1744830638845,-500.0,0.000183,2]
[358197799,1744830638856,-500.0,0.000183,2]
[358197802,1744830638865,-294.08906589,0.000183,2]
[358197804,1744830638875,-503.4036794,0.000183,2]
[358197806,1744830638884,-500.0,0.000183,2]
[358197808,1744830638893,-500.0,0.000183,2]
[358197810,1744830638903,-500.0,0.000183,2]
[358197812,1744830638912,-500.0,0.000183,2]
[358197814,1744830638922,-500.0,0.000183,2]
[358197816,1744830638931,-160.19494998,0.000183,2]
[358197818,1744830638941,-500.0,0.000183,2]
[358197820,1744830638950,-500.0,0.000183,2]
[358197822,1744830638959,-503.44686727,0.000183,2]
[358197824,1744830638969,-500.0,0.000183,2]
[358197827,1744830638979,-500.0,0.000183,2]
[358197828,1744830638988,-503.03549967,0.000183,2]
[358197831,1744830638998,-500.0,0.000183,2]
[358197833,1744830639007,-500.0,0.000183,2]
[358197835,1744830639016,-500.0,0.000183,2]
[358197837,1744830639025,-502.07270695,0.000183,2]
[358197839,1744830639035,-418.888421,0.000183,2]
[358197841,1744830639044,-222.55104381,0.000183,2]
[358197843,1744830639053,-500.0,0.000183,2]
[358197845,1744830639063,-500.0,0.000183,2]
[358197847,1744830639071,-500.0,0.000183,2]
[358197849,1744830639081,-501.57118886,0.000183,2]
[358197851,1744830639090,-466.23794936,0.000183,2]
[358197853,1744830639100,-500.0,0.000183,2]
[358197855,1744830639109,-500.0,0.000183,2]
[358197857,1744830639118,-500.0,0.000183,2]
[358197859,1744830639128,-200.5069394,0.000183,2]
[358197861,1744830639138,-170.05178276,0.000183,2]
[358197863,1744830639147,-151.0,0.00018336,2]
[358197865,1744830639156,-151.0,0.00018346,2]
[358197867,1744830639166,-151.0,0.00018346,2]
[358197869,1744830639175,-151.0,0.00018347,2]
[358197871,1744830639184,-199.79,0.00018348,2]
[358197873,1744830639193,-500.0,0.00018348,2]
[358197874,1744830639202,-161.34580668,0.00018348,2]
[358197877,1744830639211,-198.0,0.00018348,2]
[358197878,1744830639220,-151.0,0.00018348,2]
[358197881,1744830639230,-500.0,0.000184,2]
[358197883,1744830639240,-500.0,0.000184,2]
[358197885,1744830639249,-500.0,0.000184,2]
[358197887,1744830639259,-500.0,0.000184,2]
[358197889,1744830639269,-534.98308746,0.000184,2]
[358197891,1744830639280,-500.0,0.000184,2]
[358197893,1744830639289,-500.0,0.000184,2]
[358197895,1744830639298,-160.22110592,0.000184,2]
[358197897,1744830639307,-585.21893931,0.000184,2]
[358197899,1744830639318,-501.46395849,0.000184,2]
[358197901,1744830639327,-501.1744779,0.000184,2]
[358197903,1744830639336,-504.38790424,0.000184,2]
[358197905,1744830639346,-500.0,0.000184,2]
[358197907,1744830639357,-500.0,0.00018485,2]
[358197909,1744830639367,-151.0,0.00018485,2]
[358197911,1744830639376,-455.27021857,0.000185,2]
[358197913,1744830639385,-500.0,0.000185,2]
[358197915,1744830639395,-500.40702505,0.000185,2]
[358197917,1744830639404,-500.0,0.00018622,2]
[358197919,1744830639413,-151.0,0.00018622,2]
[358197921,1744830639423,-500.0,0.00018759,2]
[358197923,1744830639432,-246.1253313,0.00018759,2]
[358197925,1744830639442,-500.0,0.00018896,2]
[358197927,1744830639451,-168.34717799,0.000189,2]
[358197929,1744830639460,-500.0,0.00019033,2]
[358197931,1744830639470,-500.0,0.0001917,2]
[358197933,1744830639479,-1330.81843021,0.00019185,2]
[358197935,1744830639488,-450.18222274,0.00019307,2]
[358197937,1744830639498,-151.0,0.00019705,2]
[358197939,1744830639506,-1158.14005731,0.00019729,2]
[358197941,1744830639516,-32620.85756883,0.00019824,2]
[358197943,1744830639525,-420.0,0.00019901,2]
[358197946,1744830639534,-420.0,0.00019999,2]
[358197948,1744830639555,-160.0,0.0002,3]
[358197950,1744830639565,-240.428717,0.00021,2]
[358197952,1744830639575,-151.0,0.00021074,2]
[358197954,1744830639584,-10541.2104565,0.00021188,2]
[358197957,1744830639594,-151.0,0.00021188,2]
[358197959,1744830639606,-1158.14005731,0.0002131,2]
[358197961,1744830639618,-32620.85756883,0.00021402,2]
[358197963,1744830639628,-587.0,0.00021709,2]
[358197965,1744830639638,-587.0,0.00021922,2]
[358197967,1744830639648,-151.0,0.00022443,2]
[358197969,1744830639658,-1158.14005731,0.00022891,2]
[358197971,1744830639668,-32620.85756883,0.00022979,2]
[358197973,1744830639678,-434.332,0.00023315,2]
[358197975,1744830639690,-823.0,0.00023681,2]
[358197977,1744830639700,-1000.0,0.00023779,2]
[358197979,1744830639710,-1000.0,0.00023779,2]
[358197981,1744830639720,-500.0,0.00023779,2]
[358197983,1744830639730,-1000.0,0.00023779,2]
[358197985,1744830639740,-1000.0,0.00023779,2]
[358197988,1744830639750,-1000.0,0.00023779,2]
[358197990,1744830639760,-1000.0,0.00023779,2]
[358197992,1744830639771,-1000.0,0.00023779,2]
[358197994,1744830639781,-1000.0,0.00023779,2]
[358197996,1744830639791,-1000.0,0.00023779,2]
[358197998,1744830639800,-505.248872,0.00023779,2]
[358198000,1744830639810,-151.0,0.00023812,2]
[358198002,1744830639820,-500.0,0.00023879,2]
[358198004,1744830639830,-168.34717799,0.000239,2]
[358198006,1744830639839,-2000.0,0.00023915,4]
[358198008,1744830639850,-500.0,0.00023979,2]
[358198010,1744830639860,-823.0,0.00024031,2]
[358198012,1744830639870,-193.174,0.00024286,6]
[358198014,1744830639880,-2375.21812887,0.000243,5]
[358198016,1744830639895,-2375.21812881,0.000243,5]
[358198018,1744830639906,-2375.21812881,0.000243,5]
[358198020,1744830639916,-2375.21812881,0.000243,5]
[358198022,1744830639926,-2375.21812881,0.000243,5]
[358198024,1744830639935,-2375.21812881,0.000243,5]
[358198026,1744830639945,-2375.21812881,0.000243,5]
[358198028,1744830639955,-2375.21812881,0.000243,5]
[358198030,1744830639965,-2375.21812881,0.000243,5]
[358198033,1744830639975,-151.0,0.000243,7]
[358198035,1744830639985,-23810.0623047,0.0002441,2]
[358198037,1744830639995,-161.31703264,0.0002441,3]
[358198039,1744830640005,-43359.36998321,0.0002441,2]
[358198041,1744830640015,-14026.17880583,0.0002441,2]
[358198043,1744830640024,-151.0,0.0002441,7]
[358198045,1744830640033,-1158.14005731,0.00024472,2]
[358198047,1744830640043,-632.0,0.000245,2]
[358198049,1744830640052,-2375.21812881,0.00024555,5]
[358198051,1744830640062,-32620.85756883,0.00024557,2]
[358198053,1744830640072,-526.48,0.00024657,2]
[358198055,1744830640081,-500.0,0.00024657,2]
[358198057,1744830640091,-1564.06,0.00024657,2]
[358198059,1744830640101,-498.80184552,0.00024657,2]
[358198062,1744830640110,-759.8,0.00024657,2]
[358198065,1744830640123,-500.0,0.00024657,2]
[358198067,1744830640132,-500.0,0.00024657,2]
[358198069,1744830640142,-500.0,0.00024657,2]
[358198071,1744830640152,-1109.05,0.00024657,2]
[358198073,1744830640161,-500.0,0.00024657,2]
[358198075,1744830640171,-268.71701403,0.00024657,2]
[358198077,1744830640181,-500.0,0.00024657,2]
[358198079,1744830640190,-599.79,0.00024657,2]
[358198081,1744830640200,-500.0,0.00024657,2]
[358198083,1744830640209,-500.0,0.00024657,2]
[358198085,1744830640219,-500.0,0.00024657,2]
[358198087,1744830640228,-500.0,0.00024657,2]
[358198089,1744830640238,-500.0,0.00024657,2]
[358198091,1744830640247,-500.0,0.00024657,2]
[358198093,1744830640257,-12149.88,0.00024657,2]